[Event "Early-Titled-Tuesday-Blitz-May-07-2024"]
[Site "Chess.com"]
[Date "2024.05.07"]
[Round "4"]
[White "legendisback1"]
[Black "Mikhail_Golubev"]
[Result "1-0"]
[WhiteElo "2979"]
[BlackElo "2619"]
[TimeControl "180+1"]
[EndTime "8:42:12 PDT"]
[Termination "legendisback1 won on time"]

1. d4 {[%clk 0:03:00.9]} 1... Nf6 {[%clk 0:02:59.5]} 2. c4 {[%clk 0:03:00.8]}
2... d6 {[%clk 0:02:58.8]} 3. Nf3 {[%clk 0:03:00.1]} 3... g6 {[%clk 0:02:58.5]}
4. Nc3 {[%clk 0:02:58]} 4... Bg7 {[%clk 0:02:58.9]} 5. e4 {[%clk 0:02:58.6]}
5... O-O {[%clk 0:02:58.8]} 6. Be2 {[%clk 0:02:59.1]} 6... e5 {[%clk 0:02:58.2]}
7. O-O {[%clk 0:02:59.4]} 7... h6 {[%clk 0:02:58.2]} 8. dxe5 {[%clk 0:02:29.8]}
8... dxe5 {[%clk 0:02:57.4]} 9. Be3 {[%clk 0:02:29.6]} 9... Nbd7 {[%clk
0:02:39.8]} 10. h3 {[%clk 0:02:19.7]} 10... c6 {[%clk 0:02:39.9]} 11. Qd2 {[%clk
0:02:13.4]} 11... Kh7 {[%clk 0:02:39]} 12. Rfd1 {[%clk 0:02:12.9]} 12... Re8
{[%clk 0:02:31.1]} 13. c5 {[%clk 0:02:09.6]} 13... Qe7 {[%clk 0:02:16.8]} 14. b4
{[%clk 0:02:09]} 14... a5 {[%clk 0:02:14.9]} 15. a3 {[%clk 0:02:09]} 15... axb4
{[%clk 0:02:09.6]} 16. axb4 {[%clk 0:02:09.9]} 16... Rxa1 {[%clk 0:02:09.2]} 17.
Rxa1 {[%clk 0:02:10.8]} 17... Nf8 {[%clk 0:02:09]} 18. Ra7 {[%clk 0:02:03.3]}
18... Ne6 {[%clk 0:01:39.8]} 19. Nxe5 {[%clk 0:02:00.4]} 19... Nxe4 {[%clk
0:01:33.8]} 20. Nxe4 {[%clk 0:01:48.7]} 20... Bxe5 {[%clk 0:01:30.6]} 21. Bxh6
{[%clk 0:01:29.9]} 21... Rd8 {[%clk 0:01:24.5]} 22. Qc1 {[%clk 0:01:27.2]} 22...
Nd4 {[%clk 0:00:59.4]} 23. Bf1 {[%clk 0:01:09.4]} 23... Bf5 {[%clk 0:00:58.2]}
24. Ng5+ {[%clk 0:00:46.5]} 24... Kxh6 {[%clk 0:00:54.9]} 25. Nxf7+ {[%clk
0:00:44.7]} 25... Kg7 {[%clk 0:00:43.8]} 26. Nxd8 {[%clk 0:00:43]} 26... Qxd8
{[%clk 0:00:40.2]} 27. Rxb7+ {[%clk 0:00:42.3]} 27... Kf6 {[%clk 0:00:12.5]} 28.
Qh6 {[%clk 0:00:36.6]} 28... Bc7 {[%clk 0:00:05.4]} 29. Qh4+ {[%clk 0:00:34.5]}
29... g5 {[%clk 0:00:05.6]} 30. Qh6+ {[%clk 0:00:34.3]} 30... Bg6 {[%clk
0:00:05.8]} 31. h4 {[%clk 0:00:32.9]} 31... Ne6 {[%clk 0:00:03.3]} 32. h5 {[%clk
0:00:32.1]} 32... Nf4 {[%clk 0:00:01.8]} 33. hxg6 {[%clk 0:00:28.8]} 1-0

[Event "Early-Titled-Tuesday-Blitz-May-07-2024"]
[Site "Chess.com"]
[Date "2024.05.07"]
[Round "4"]
[White "Nechitaylo_Nikita"]
[Black "biveklama"]
[Result "0-1"]
[WhiteElo "2355"]
[BlackElo "2540"]
[TimeControl "180+1"]
[EndTime "8:42:12 PDT"]
[Termination "biveklama won on time"]

1. d4 {[%clk 0:03:00.9]} 1... d5 {[%clk 0:02:59.8]} 2. c4 {[%clk 0:03:01.3]}
2... c6 {[%clk 0:03:00.2]} 3. cxd5 {[%clk 0:03:01.6]} 3... cxd5 {[%clk
0:02:59.5]} 4. Bf4 {[%clk 0:03:01.7]} 4... Nf6 {[%clk 0:03:00]} 5. e3 {[%clk
0:03:02.1]} 5... Nc6 {[%clk 0:02:49.8]} 6. Nc3 {[%clk 0:03:02.5]} 6... Bf5
{[%clk 0:02:45.9]} 7. Qb3 {[%clk 0:03:02.8]} 7... Na5 {[%clk 0:02:46.1]} 8. Qa4+
{[%clk 0:03:03.3]} 8... Bd7 {[%clk 0:02:46.2]} 9. Qc2 {[%clk 0:03:04]} 9... Rc8
{[%clk 0:02:46]} 10. Bd3 {[%clk 0:03:02]} 10... e6 {[%clk 0:02:46.3]} 11. Nf3
{[%clk 0:03:02.4]} 11... Nh5 {[%clk 0:02:45.9]} 12. Be5 {[%clk 0:02:48.9]} 12...
f6 {[%clk 0:02:46.2]} 13. Bxh7 {[%clk 0:02:22.9]} 13... Bb4 {[%clk 0:02:21.7]}
14. Qg6+ {[%clk 0:02:00.7]} 14... Kf8 {[%clk 0:02:21.8]} 15. Qxh5 {[%clk
0:01:53.2]} 15... Be8 {[%clk 0:02:10.2]} 16. Qg4 {[%clk 0:01:42.3]} 16... Rxh7
{[%clk 0:02:03]} 17. O-O {[%clk 0:01:18.2]} 17... fxe5 {[%clk 0:01:57.1]} 18.
Ng5 {[%clk 0:01:17.9]} 18... Rh6 {[%clk 0:01:49.1]} 19. Nxe6+ {[%clk 0:00:47.7]}
19... Rxe6 {[%clk 0:01:50]} 20. Qxe6 {[%clk 0:00:48.1]} 20... Bf7 {[%clk
0:01:50.4]} 21. Qxe5 {[%clk 0:00:45]} 21... Nc4 {[%clk 0:01:50.9]} 22. Qf5
{[%clk 0:00:34.1]} 22... Nxb2 {[%clk 0:01:43.9]} 23. Nxd5 {[%clk 0:00:25.8]}
23... Ba3 {[%clk 0:01:33.5]} 24. Nf4 {[%clk 0:00:22.8]} 24... Kg8 {[%clk
0:01:30.1]} 25. Rac1 {[%clk 0:00:18.1]} 25... Nc4 {[%clk 0:01:28.6]} 26. Rc2
{[%clk 0:00:10.1]} 26... Nd6 {[%clk 0:01:21]} 27. Rxc8 {[%clk 0:00:09.4]} 27...
Nxc8 {[%clk 0:01:19.4]} 28. d5 {[%clk 0:00:04.8]} 28... Nd6 {[%clk 0:01:14.8]}
29. Qe5 {[%clk 0:00:03.1]} 29... Nc4 {[%clk 0:01:09.1]} 30. Qd4 {[%clk
0:00:02.4]} 30... b5 {[%clk 0:01:06.2]} 31. Ne6 {[%clk 0:00:02]} 31... Qf6
{[%clk 0:01:04.3]} 32. Qxf6 {[%clk 0:00:01.7]} 32... gxf6 {[%clk 0:01:05.2]} 33.
Nc7 {[%clk 0:00:01.5]} 33... b4 {[%clk 0:01:04]} 34. e4 {[%clk 0:00:01.6]} 34...
a5 {[%clk 0:01:01.6]} 35. f4 {[%clk 0:00:01.8]} 35... a4 {[%clk 0:01:02.1]} 36.
Re1 {[%clk 0:00:01.9]} 36... b3 {[%clk 0:01:01.6]} 37. axb3 {[%clk 0:00:02.8]}
37... axb3 {[%clk 0:01:02.5]} 38. e5 {[%clk 0:00:03.5]} 38... fxe5 {[%clk
0:01:02.9]} 39. fxe5 {[%clk 0:00:04.4]} 39... Bc5+ {[%clk 0:01:01.2]} 40. Kf1
{[%clk 0:00:04.4]} 40... Bg6 {[%clk 0:00:56.4]} 41. d6 {[%clk 0:00:02.7]} 41...
Bd3+ {[%clk 0:00:56.5]} 42. Re2 {[%clk 0:00:02.5]} 42... b2 {[%clk 0:00:55.8]}
0-1

[Event "Early-Titled-Tuesday-Blitz-May-07-2024"]
[Site "Chess.com"]
[Date "2024.05.07"]
[Round "4"]
[White "Sadykov_Ramil"]
[Black "ChessSG1"]
[Result "0-1"]
[WhiteElo "2601"]
[BlackElo "2454"]
[TimeControl "180+1"]
[EndTime "8:42:14 PDT"]
[Termination "ChessSG1 won by resignation"]

1. Nf3 {[%clk 0:03:00.9]} 1... c5 {[%clk 0:02:58.1]} 2. c4 {[%clk 0:02:59.3]}
2... g6 {[%clk 0:02:58.1]} 3. d4 {[%clk 0:02:58.1]} 3... cxd4 {[%clk 0:02:58.1]}
4. Nxd4 {[%clk 0:02:59]} 4... Nc6 {[%clk 0:02:56.2]} 5. e4 {[%clk 0:02:57.5]}
5... Bg7 {[%clk 0:02:55.1]} 6. Be3 {[%clk 0:02:57.2]} 6... Nf6 {[%clk
0:02:55.1]} 7. Nc3 {[%clk 0:02:57.1]} 7... d6 {[%clk 0:02:50.3]} 8. Be2 {[%clk
0:02:56.5]} 8... O-O {[%clk 0:02:51]} 9. O-O {[%clk 0:02:56.2]} 9... Bd7 {[%clk
0:02:51.7]} 10. Rc1 {[%clk 0:02:55.4]} 10... Nxd4 {[%clk 0:02:46.8]} 11. Bxd4
{[%clk 0:02:56.3]} 11... Bc6 {[%clk 0:02:47.3]} 12. f3 {[%clk 0:02:52.2]} 12...
a5 {[%clk 0:02:47.9]} 13. Nd5 {[%clk 0:02:36.2]} 13... Nxd5 {[%clk 0:02:33.4]}
14. exd5 {[%clk 0:02:33.6]} 14... Bd7 {[%clk 0:02:32.5]} 15. Bxg7 {[%clk
0:02:22.1]} 15... Kxg7 {[%clk 0:02:33.4]} 16. Qd4+ {[%clk 0:02:22.1]} 16... Kg8
{[%clk 0:02:33.5]} 17. Rf2 {[%clk 0:02:00]} 17... Rc8 {[%clk 0:02:32.7]} 18. Re1
{[%clk 0:01:57.3]} 18... e5 {[%clk 0:02:21]} 19. dxe6 {[%clk 0:01:53.6]} 19...
Bxe6 {[%clk 0:02:21.3]} 20. Bf1 {[%clk 0:01:42.5]} 20... Qc7 {[%clk 0:02:11.7]}
21. Rd2 {[%clk 0:01:35.8]} 21... Qc5 {[%clk 0:02:11.5]} 22. b3 {[%clk 0:01:28]}
22... a4 {[%clk 0:01:51.1]} 23. Kh1 {[%clk 0:01:19]} 23... Rfd8 {[%clk
0:01:37.3]} 24. Red1 {[%clk 0:01:16.6]} 24... axb3 {[%clk 0:01:26.5]} 25. Qxc5
{[%clk 0:01:07.8]} 25... Rxc5 {[%clk 0:01:24.8]} 26. axb3 {[%clk 0:01:08.3]}
26... b5 {[%clk 0:00:40.6]} 27. b4 {[%clk 0:01:00.2]} 27... Rc6 {[%clk
0:00:29.6]} 28. c5 {[%clk 0:00:55.6]} 28... Bc4 {[%clk 0:00:23.2]} 29. Bxc4
{[%clk 0:00:31.7]} 29... bxc4 {[%clk 0:00:23.5]} 30. Rd4 {[%clk 0:00:23.4]}
30... c3 {[%clk 0:00:21.5]} 31. cxd6 {[%clk 0:00:20.1]} 31... c2 {[%clk
0:00:20.3]} 32. Rc1 {[%clk 0:00:09.2]} 32... Rcxd6 {[%clk 0:00:20.7]} 33. Rxd6
{[%clk 0:00:06.5]} 33... Rxd6 {[%clk 0:00:20.8]} 0-1

[Event "Early-Titled-Tuesday-Blitz-May-07-2024"]
[Site "Chess.com"]
[Date "2024.05.07"]
[Round "4"]
[White "Goffredo_Fofi"]
[Black "Acva-Alenok"]
[Result "1-0"]
[WhiteElo "2524"]
[BlackElo "2336"]
[TimeControl "180+1"]
[EndTime "8:42:15 PDT"]
[Termination "Goffredo_Fofi won by resignation"]

1. e4 {[%clk 0:02:56.9]} 1... c6 {[%clk 0:02:59.3]} 2. Nf3 {[%clk 0:02:55.7]}
2... d5 {[%clk 0:02:59.8]} 3. d3 {[%clk 0:02:56.3]} 3... Nf6 {[%clk 0:02:53]} 4.
e5 {[%clk 0:02:54.7]} 4... Nfd7 {[%clk 0:02:49.6]} 5. d4 {[%clk 0:02:39.9]} 5...
e6 {[%clk 0:02:49.2]} 6. Bd3 {[%clk 0:02:37.1]} 6... c5 {[%clk 0:02:49.5]} 7. c3
{[%clk 0:02:37.5]} 7... Nc6 {[%clk 0:02:49.1]} 8. O-O {[%clk 0:02:30.3]} 8...
Qb6 {[%clk 0:02:48.9]} 9. Bc2 {[%clk 0:01:58.6]} 9... Be7 {[%clk 0:02:12.4]} 10.
a3 {[%clk 0:01:55.5]} 10... h6 {[%clk 0:02:01.6]} 11. Re1 {[%clk 0:01:35.9]}
11... g5 {[%clk 0:01:54.5]} 12. h3 {[%clk 0:01:25.5]} 12... Rg8 {[%clk
0:01:42.1]} 13. b4 {[%clk 0:01:00.7]} 13... cxd4 {[%clk 0:01:39.6]} 14. cxd4
{[%clk 0:01:00.5]} 14... h5 {[%clk 0:01:30.6]} 15. Be3 {[%clk 0:01:00.4]} 15...
g4 {[%clk 0:01:16.6]} 16. hxg4 {[%clk 0:01:01.3]} 16... hxg4 {[%clk 0:01:17.2]}
17. Nh2 {[%clk 0:01:01]} 17... g3 {[%clk 0:01:00.9]} 18. fxg3 {[%clk 0:01:01.9]}
18... a5 {[%clk 0:00:54.6]} 19. b5 {[%clk 0:00:59]} 19... Qxb5 {[%clk
0:00:42.1]} 20. Nc3 {[%clk 0:00:59.1]} 20... Qa6 {[%clk 0:00:23.7]} 21. Bd3
{[%clk 0:00:54.6]} 21... Qa7 {[%clk 0:00:21.9]} 22. Nb5 {[%clk 0:00:49]} 22...
Qb8 {[%clk 0:00:22.4]} 23. Qf3 {[%clk 0:00:45.8]} 23... Nd8 {[%clk 0:00:18.6]}
24. Ng4 {[%clk 0:00:41.2]} 24... b6 {[%clk 0:00:16.1]} 25. Rf1 {[%clk
0:00:35.9]} 25... Ba6 {[%clk 0:00:13.7]} 26. Rac1 {[%clk 0:00:34.9]} 26... Bxb5
{[%clk 0:00:12.7]} 27. Bxb5 {[%clk 0:00:35.8]} 27... Qb7 {[%clk 0:00:10.8]} 28.
Nf6+ {[%clk 0:00:28.8]} 28... Bxf6 {[%clk 0:00:10.9]} 29. Qxf6 {[%clk
0:00:29.6]} 29... Rc8 {[%clk 0:00:10.8]} 30. Bg5 {[%clk 0:00:26.2]} 30... Nc6
{[%clk 0:00:07.3]} 31. Bxc6 {[%clk 0:00:25.9]} 1-0

[Event "Early-Titled-Tuesday-Blitz-May-07-2024"]
[Site "Chess.com"]
[Date "2024.05.07"]
[Round "4"]
[White "kekic76"]
[Black "kacperkarwowski"]
[Result "0-1"]
[WhiteElo "2345"]
[BlackElo "2530"]
[TimeControl "180+1"]
[EndTime "8:42:16 PDT"]
[Termination "kacperkarwowski won on time"]

1. c4 {[%clk 0:02:54.6]} 1... e6 {[%clk 0:02:58.2]} 2. Nc3 {[%clk 0:02:55]} 2...
d5 {[%clk 0:02:58.3]} 3. cxd5 {[%clk 0:02:53.2]} 3... exd5 {[%clk 0:02:58.3]} 4.
d4 {[%clk 0:02:53.4]} 4... a6 {[%clk 0:02:51.2]} 5. Bf4 {[%clk 0:02:53.5]} 5...
c6 {[%clk 0:02:47.6]} 6. Nf3 {[%clk 0:02:53.9]} 6... Bd6 {[%clk 0:02:44.8]} 7.
Bxd6 {[%clk 0:02:53.6]} 7... Qxd6 {[%clk 0:02:44.6]} 8. e3 {[%clk 0:02:54.5]}
8... Ne7 {[%clk 0:02:44.1]} 9. Bd3 {[%clk 0:02:52.6]} 9... Bf5 {[%clk
0:02:39.7]} 10. O-O {[%clk 0:02:47.4]} 10... O-O {[%clk 0:02:38.9]} 11. a3
{[%clk 0:02:44.3]} 11... Nd7 {[%clk 0:02:38]} 12. b4 {[%clk 0:02:44.2]} 12... b5
{[%clk 0:02:34.5]} 13. Rc1 {[%clk 0:02:35.5]} 13... Nb6 {[%clk 0:02:31]} 14. Ne5
{[%clk 0:02:33.4]} 14... f6 {[%clk 0:02:27.1]} 15. Nf3 {[%clk 0:02:15.1]} 15...
Bxd3 {[%clk 0:02:20.3]} 16. Qxd3 {[%clk 0:02:12.3]} 16... Nc4 {[%clk 0:02:21.2]}
17. Nb1 {[%clk 0:02:11.2]} 17... a5 {[%clk 0:02:01.6]} 18. Qb3 {[%clk
0:01:58.2]} 18... axb4 {[%clk 0:01:58.5]} 19. axb4 {[%clk 0:01:59.1]} 19... Ra4
{[%clk 0:01:54.8]} 20. Nbd2 {[%clk 0:01:54.7]} 20... Qxb4 {[%clk 0:01:49.3]} 21.
Qd3 {[%clk 0:01:46.7]} 21... Ra3 {[%clk 0:01:44.3]} 22. Qe2 {[%clk 0:01:41.7]}
22... Ra2 {[%clk 0:01:44.7]} 23. Rfd1 {[%clk 0:01:31.9]} 23... Nf5 {[%clk
0:01:28.1]} 24. Qe1 {[%clk 0:01:24]} 24... Nfd6 {[%clk 0:01:21]} 25. Rb1 {[%clk
0:01:10]} 25... Qa4 {[%clk 0:01:04.4]} 26. Nb3 {[%clk 0:00:34.9]} 26... Ne4
{[%clk 0:00:55.2]} 27. Nfd2 {[%clk 0:00:20.5]} 27... Ncxd2 {[%clk 0:00:44]} 28.
Nxd2 {[%clk 0:00:21.4]} 28... Nc3 {[%clk 0:00:44]} 29. Ra1 {[%clk 0:00:14.8]}
29... Nxd1 {[%clk 0:00:38.9]} 30. Rxa2 {[%clk 0:00:15.2]} 30... Qxa2 {[%clk
0:00:39.5]} 31. Qxd1 {[%clk 0:00:15.6]} 31... Ra8 {[%clk 0:00:39.6]} 32. Nb3
{[%clk 0:00:12.8]} 32... Ra3 {[%clk 0:00:37]} 33. Nc5 {[%clk 0:00:12.1]} 33...
Qb2 {[%clk 0:00:35]} 34. Nd3 {[%clk 0:00:04.1]} 34... Qc3 {[%clk 0:00:35.2]} 35.
Nc1 {[%clk 0:00:02.9]} 35... Ra1 {[%clk 0:00:35.1]} 0-1

[Event "Early-Titled-Tuesday-Blitz-May-07-2024"]
[Site "Chess.com"]
[Date "2024.05.07"]
[Round "4"]
[White "stratacticos"]
[Black "klercaku"]
[Result "0-1"]
[WhiteElo "1832"]
[BlackElo "2255"]
[TimeControl "180+1"]
[EndTime "8:42:16 PDT"]
[Termination "klercaku won by resignation"]

1. b4 {[%clk 0:02:59.3]} 1... e5 {[%clk 0:02:59.2]} 2. Bb2 {[%clk 0:02:58.2]}
2... d6 {[%clk 0:02:52.9]} 3. c4 {[%clk 0:02:57.2]} 3... f5 {[%clk 0:02:49.8]}
4. e4 {[%clk 0:02:52.9]} 4... fxe4 {[%clk 0:02:49.2]} 5. d3 {[%clk 0:02:52.8]}
5... exd3 {[%clk 0:02:45.7]} 6. Bxd3 {[%clk 0:02:52.4]} 6... Nf6 {[%clk
0:02:45.1]} 7. Nf3 {[%clk 0:02:37.5]} 7... Bg4 {[%clk 0:02:19.5]} 8. h3 {[%clk
0:02:31.1]} 8... Bh5 {[%clk 0:02:17]} 9. g4 {[%clk 0:02:30.7]} 9... Bf7 {[%clk
0:02:14.3]} 10. Ng5 {[%clk 0:02:30.5]} 10... h6 {[%clk 0:02:04.5]} 11. Nxf7
{[%clk 0:02:29.9]} 11... Kxf7 {[%clk 0:02:05.4]} 12. Qc2 {[%clk 0:02:28.7]}
12... e4 {[%clk 0:01:37.8]} 13. Bxe4 {[%clk 0:02:26.8]} 13... Nxe4 {[%clk
0:01:36.9]} 14. Qxe4 {[%clk 0:02:26]} 14... Qe7 {[%clk 0:01:36.4]} 15. Nc3
{[%clk 0:02:20.8]} 15... Nc6 {[%clk 0:01:29.2]} 16. a3 {[%clk 0:02:18.5]} 16...
Re8 {[%clk 0:01:02.2]} 17. Qxe7+ {[%clk 0:02:11.9]} 17... Bxe7 {[%clk
0:00:56.8]} 18. O-O {[%clk 0:02:10.2]} 18... Bf6 {[%clk 0:00:52.5]} 19. Rab1
{[%clk 0:02:07.8]} 19... Nd4 {[%clk 0:00:47.2]} 20. Nd5 {[%clk 0:02:03.6]} 20...
Nf3+ {[%clk 0:00:46.6]} 21. Kg2 {[%clk 0:02:03.2]} 21... Nd2 {[%clk 0:00:45.9]}
22. Bxf6 {[%clk 0:01:53.9]} 22... gxf6 {[%clk 0:00:43.1]} 23. Nxc7 {[%clk
0:01:52.5]} 23... Rc8 {[%clk 0:00:40.1]} 24. Nb5 {[%clk 0:01:51.7]} 24... Rc6
{[%clk 0:00:22.6]} 25. Rbd1 {[%clk 0:01:39]} 25... Nxf1 {[%clk 0:00:21.5]} 26.
Kxf1 {[%clk 0:01:37.2]} 26... Rd8 {[%clk 0:00:15.8]} 27. Nxa7 {[%clk 0:01:36.6]}
27... Rxc4 {[%clk 0:00:15.3]} 28. Nb5 {[%clk 0:01:34.8]} 28... d5 {[%clk
0:00:15.1]} 29. Kg2 {[%clk 0:01:23.7]} 29... d4 {[%clk 0:00:15.2]} 30. Rd3
{[%clk 0:01:12.8]} 30... Rd5 {[%clk 0:00:10.6]} 31. h4 {[%clk 0:00:19.2]} 31...
Rxb5 {[%clk 0:00:09]} 0-1

[Event "Early-Titled-Tuesday-Blitz-May-07-2024"]
[Site "Chess.com"]
[Date "2024.05.07"]
[Round "4"]
[White "VD_coach"]
[Black "Kiborg95"]
[Result "0-1"]
[WhiteElo "2608"]
[BlackElo "2840"]
[TimeControl "180+1"]
[EndTime "8:42:17 PDT"]
[Termination "Kiborg95 won on time"]

1. d4 {[%clk 0:02:53]} 1... d6 {[%clk 0:03:00.4]} 2. Nf3 {[%clk 0:02:53.3]} 2...
Nf6 {[%clk 0:03:00.7]} 3. c4 {[%clk 0:02:53.1]} 3... Nbd7 {[%clk 0:03:01.4]} 4.
Nc3 {[%clk 0:02:53.2]} 4... e5 {[%clk 0:03:02.2]} 5. g3 {[%clk 0:02:49.6]} 5...
c6 {[%clk 0:03:01.2]} 6. Bg2 {[%clk 0:02:26.3]} 6... e4 {[%clk 0:03:01.5]} 7.
Nd2 {[%clk 0:02:10.9]} 7... d5 {[%clk 0:03:01.8]} 8. O-O {[%clk 0:02:07.9]} 8...
Bb4 {[%clk 0:03:01.8]} 9. cxd5 {[%clk 0:02:07.5]} 9... cxd5 {[%clk 0:03:01.7]}
10. Qb3 {[%clk 0:02:07.3]} 10... Bxc3 {[%clk 0:03:02.1]} 11. bxc3 {[%clk
0:02:07.2]} 11... O-O {[%clk 0:03:03]} 12. c4 {[%clk 0:02:01.6]} 12... Re8
{[%clk 0:03:03.5]} 13. cxd5 {[%clk 0:02:00.1]} 13... Nb6 {[%clk 0:03:03.3]} 14.
Nc4 {[%clk 0:01:40.6]} 14... Nxc4 {[%clk 0:03:03.6]} 15. Qxc4 {[%clk 0:01:40.6]}
15... Nxd5 {[%clk 0:03:04.5]} 16. Rb1 {[%clk 0:01:30.2]} 16... b6 {[%clk
0:03:02.4]} 17. e3 {[%clk 0:01:16.2]} 17... Bg4 {[%clk 0:02:47.5]} 18. Bd2
{[%clk 0:01:14.9]} 18... Qd7 {[%clk 0:02:42]} 19. Rbc1 {[%clk 0:01:12.7]} 19...
Rad8 {[%clk 0:02:31.7]} 20. a4 {[%clk 0:00:55.3]} 20... Qf5 {[%clk 0:02:29.8]}
21. a5 {[%clk 0:00:54.8]} 21... Qh5 {[%clk 0:02:29.7]} 22. axb6 {[%clk 0:00:54]}
22... Be2 {[%clk 0:02:28.3]} 23. Qc6 {[%clk 0:00:46.5]} 23... Bxf1 {[%clk
0:02:24.9]} 24. Bxf1 {[%clk 0:00:43.7]} 24... axb6 {[%clk 0:02:22.7]} 25. Bc4
{[%clk 0:00:39.7]} 25... Re6 {[%clk 0:01:56.4]} 26. Qb5 {[%clk 0:00:35.6]} 26...
h6 {[%clk 0:01:47.2]} 27. Bf1 {[%clk 0:00:22.9]} 27... Qg6 {[%clk 0:01:38.3]}
28. Ra1 {[%clk 0:00:20.5]} 28... Rc6 {[%clk 0:01:32.4]} 29. Ra2 {[%clk
0:00:14.8]} 29... Qe6 {[%clk 0:01:11.5]} 30. h3 {[%clk 0:00:14.4]} 30... Rdc8
{[%clk 0:01:06.6]} 31. Ra7 {[%clk 0:00:11.7]} 31... Rc2 {[%clk 0:01:02.4]} 32.
Be1 {[%clk 0:00:07.6]} 32... Rc1 {[%clk 0:01:01.2]} 33. Bd2 {[%clk 0:00:07.2]}
33... Rd1 {[%clk 0:00:44.6]} 34. Qe2 {[%clk 0:00:05.8]} 34... Rb1 {[%clk
0:00:43.7]} 35. Ra2 {[%clk 0:00:05.4]} 35... Qxh3 {[%clk 0:00:42.5]} 36. Be1
{[%clk 0:00:00.8]} 36... Qe6 {[%clk 0:00:35.7]} 37. Kg2 {[%clk 0:00:00.3]} 37...
Rcc1 {[%clk 0:00:35.6]} 0-1

[Event "Early-Titled-Tuesday-Blitz-May-07-2024"]
[Site "Chess.com"]
[Date "2024.05.07"]
[Round "4"]
[White "Shuvalov"]
[Black "vanyakuba"]
[Result "0-1"]
[WhiteElo "2577"]
[BlackElo "2418"]
[TimeControl "180+1"]
[EndTime "8:42:18 PDT"]
[Termination "vanyakuba won by resignation"]

1. d4 {[%clk 0:02:09.1]} 1... d5 {[%clk 0:02:59.5]} 2. c4 {[%clk 0:02:07.9]}
2... e6 {[%clk 0:02:59.6]} 3. Nf3 {[%clk 0:02:07.8]} 3... c5 {[%clk 0:02:58.6]}
4. e3 {[%clk 0:02:05.7]} 4... Nf6 {[%clk 0:02:57.4]} 5. Nc3 {[%clk 0:02:05.5]}
5... a6 {[%clk 0:02:57.5]} 6. b3 {[%clk 0:02:04]} 6... Nc6 {[%clk 0:02:54.4]} 7.
Bb2 {[%clk 0:02:03.3]} 7... cxd4 {[%clk 0:02:03.2]} 8. exd4 {[%clk 0:02:02.9]}
8... Bb4 {[%clk 0:02:02.1]} 9. a3 {[%clk 0:01:57.8]} 9... Bxc3+ {[%clk
0:02:01.3]} 10. Bxc3 {[%clk 0:01:58.7]} 10... Ne4 {[%clk 0:02:00.1]} 11. Bb2
{[%clk 0:01:58.2]} 11... dxc4 {[%clk 0:01:51.6]} 12. bxc4 {[%clk 0:01:57]} 12...
Qa5+ {[%clk 0:01:45.4]} 13. Nd2 {[%clk 0:01:53.1]} 13... O-O {[%clk 0:01:26.6]}
14. Bd3 {[%clk 0:01:50.3]} 14... Nxd2 {[%clk 0:01:15.5]} 15. Qxd2 {[%clk
0:01:51.2]} 15... Qxd2+ {[%clk 0:01:15]} 16. Kxd2 {[%clk 0:01:52.1]} 16... Rd8
{[%clk 0:01:15]} 17. Ke3 {[%clk 0:01:51.9]} 17... Bd7 {[%clk 0:01:02]} 18. Rhd1
{[%clk 0:01:49.7]} 18... Rac8 {[%clk 0:00:59.7]} 19. Rac1 {[%clk 0:01:49.4]}
19... Na5 {[%clk 0:00:56.6]} 20. f4 {[%clk 0:01:28.2]} 20... b5 {[%clk 0:00:44]}
21. c5 {[%clk 0:01:21.9]} 21... Bc6 {[%clk 0:00:40.2]} 22. g4 {[%clk 0:01:18.5]}
22... Rd7 {[%clk 0:00:29.4]} 23. Be4 {[%clk 0:01:14.1]} 23... Nc4+ {[%clk
0:00:26.5]} 24. Rxc4 {[%clk 0:01:11.6]} 24... bxc4 {[%clk 0:00:27]} 25. Bxc6
{[%clk 0:01:00.2]} 25... Rxc6 {[%clk 0:00:27.9]} 26. Bc3 {[%clk 0:01:00.6]}
26... Rxc5 {[%clk 0:00:19.5]} 27. dxc5 {[%clk 0:00:23]} 27... Rxd1 {[%clk
0:00:20.4]} 28. c6 {[%clk 0:00:23.1]} 28... Rd6 {[%clk 0:00:16.5]} 29. c7 {[%clk
0:00:21.1]} 29... Rc6 {[%clk 0:00:16.6]} 30. Ba5 {[%clk 0:00:20.4]} 30... c3
{[%clk 0:00:14.2]} 31. Kd3 {[%clk 0:00:11.4]} 31... c2 {[%clk 0:00:14.4]} 32.
Bd2 {[%clk 0:00:10.4]} 32... c1=Q {[%clk 0:00:14.2]} 33. Bxc1 {[%clk 0:00:10.7]}
33... Rxc1 {[%clk 0:00:14.8]} 0-1

[Event "Early-Titled-Tuesday-Blitz-May-07-2024"]
[Site "Chess.com"]
[Date "2024.05.07"]
[Round "4"]
[White "NMChessToImpress"]
[Black "LuisFSiles"]
[Result "0-1"]
[WhiteElo "2265"]
[BlackElo "2491"]
[TimeControl "180+1"]
[EndTime "8:42:19 PDT"]
[Termination "LuisFSiles won by checkmate"]

1. e4 {[%clk 0:02:57.3]} 1... c5 {[%clk 0:02:59.4]} 2. Nf3 {[%clk 0:02:57.7]}
2... Nc6 {[%clk 0:02:59.9]} 3. d4 {[%clk 0:02:58.4]} 3... cxd4 {[%clk
0:03:00.6]} 4. Nxd4 {[%clk 0:02:59.3]} 4... Nf6 {[%clk 0:03:00.2]} 5. Nc3 {[%clk
0:02:59.2]} 5... e5 {[%clk 0:03:00.9]} 6. Ndb5 {[%clk 0:02:59.8]} 6... d6 {[%clk
0:03:01.3]} 7. Bg5 {[%clk 0:03:00.3]} 7... a6 {[%clk 0:03:01.6]} 8. Na3 {[%clk
0:03:01]} 8... b5 {[%clk 0:03:02.5]} 9. Bxf6 {[%clk 0:03:01]} 9... gxf6 {[%clk
0:03:02.6]} 10. Nd5 {[%clk 0:03:01.9]} 10... f5 {[%clk 0:03:03]} 11. Bd3 {[%clk
0:03:02.6]} 11... Be6 {[%clk 0:03:02.2]} 12. O-O {[%clk 0:03:03.2]} 12... Bg7
{[%clk 0:02:53.7]} 13. Qh5 {[%clk 0:03:00]} 13... f4 {[%clk 0:02:41.8]} 14. c4
{[%clk 0:02:58.6]} 14... b4 {[%clk 0:02:37.9]} 15. Nc2 {[%clk 0:02:58.1]} 15...
a5 {[%clk 0:02:35.1]} 16. Kh1 {[%clk 0:02:57.8]} 16... Ne7 {[%clk 0:02:09.6]}
17. g3 {[%clk 0:02:50]} 17... Bxd5 {[%clk 0:02:07.2]} 18. cxd5 {[%clk
0:02:30.3]} 18... Ng6 {[%clk 0:02:00.2]} 19. Bb5+ {[%clk 0:02:25.9]} 19... Kf8
{[%clk 0:01:56.3]} 20. Rac1 {[%clk 0:02:20]} 20... h6 {[%clk 0:01:54.1]} 21. Ne1
{[%clk 0:01:22.6]} 21... Qg5 {[%clk 0:01:47.1]} 22. Qxg5 {[%clk 0:01:22.6]}
22... hxg5 {[%clk 0:01:46.7]} 23. Rc7 {[%clk 0:01:23.1]} 23... Bf6 {[%clk
0:01:38.6]} 24. Nd3 {[%clk 0:01:10.9]} 24... Kg7 {[%clk 0:01:36.3]} 25. Rfc1
{[%clk 0:01:07.4]} 25... Rh3 {[%clk 0:01:23.3]} 26. Bd7 {[%clk 0:00:58.5]} 26...
Rh6 {[%clk 0:01:17.3]} 27. Kg2 {[%clk 0:00:20.6]} 27... Rhh8 {[%clk 0:01:01.5]}
28. Rb7 {[%clk 0:00:16.7]} 28... Bd8 {[%clk 0:00:58.1]} 29. Be6 {[%clk
0:00:13.8]} 29... Rf8 {[%clk 0:00:56.6]} 30. Rc6 {[%clk 0:00:13.8]} 30... Kf6
{[%clk 0:00:46.5]} 31. Bf5 {[%clk 0:00:11.7]} 31... Be7 {[%clk 0:00:44.9]} 32.
Rcc7 {[%clk 0:00:09.8]} 32... Rfe8 {[%clk 0:00:44.6]} 33. gxf4 {[%clk
0:00:04.2]} 33... Nh4+ {[%clk 0:00:39.9]} 34. Kg3 {[%clk 0:00:02.7]} 34... exf4+
{[%clk 0:00:39.4]} 35. Kg4 {[%clk 0:00:03.1]} 35... Nxf5 {[%clk 0:00:30.8]} 36.
exf5 {[%clk 0:00:04]} 36... Rac8 {[%clk 0:00:28.4]} 37. f3 {[%clk 0:00:03.7]}
37... Rxc7 {[%clk 0:00:28.3]} 38. Rxc7 {[%clk 0:00:04.6]} 38... Rh8 {[%clk
0:00:28.1]} 39. Nf2 {[%clk 0:00:04.1]} 39... Rh4# {[%clk 0:00:27]} 0-1